Cogmind - Beta 17 *** ADVENTURER MODE // 2026.07.31 @ 01:40:02 Player: niceypoo Result: Destroyed by Y-45 Defender with Heavy Assault Rifle Performance ------------- Evolutions (1) 500 Regions Visited (2) 400 Robots Destroyed (27) 135 Value Destroyed (583) 583 Prototype IDs (0) 0 Alien Tech Used (0) 0 Bonus (0) 0 TOTAL SCORE: 1618 Bonus ------- None Cogmind --------- Core Integrity 0/400 Matter 300/300 Energy 91/100 System Corruption 1% Temperature Cool (9) Movement Core (350) Ox6 Location -9/Materials Parts ------- > --- POWER (1) -------- (None) > --- PROPULSION (2) --- (None) > --- UTILITY (4) ------ Large Storage Unit Improved Targeting Computer > --- WEAPON (2) ------- (None) > --- INVENTORY (15) --- Improved Aluminum Leg Flight Unit Large Matter Pod (150) Signal Interpreter Seismic Detector Particle Cannon Light Assault Rifle Peak State ------------ > --- POWER ------------ Light Ion Engine > --- PROPULSION ------- Improved Aluminum Leg Improved Aluminum Leg > --- UTILITY ---------- Small Storage Unit Improved Targeting Computer Hardened Light Armor Plating Hardened Light Armor Plating > --- WEAPON ----------- Heavy EM Pulse Gun Particle Cannon > --- INVENTORY -------- Improved Aluminum Leg Flight Unit Flight Unit Weight Redist. System Spread Laser Particle Cannon [Rating: 17] Favorites ----------- Power Light Ion Engine Engine Light Ion Engine Propulsion Aluminum Leg Leg Aluminum Leg Wheel Wheel Hover Unit Hover Unit Flight Unit Flight Unit Utility Small Storage Unit Device Shield Generator Storage Small Storage Unit Processor Improved Targeting Computer Protection Hardened Light Armor Plating Weapon EM Pulse Gun Energy Gun EM Pulse Gun Energy Cannon Particle Cannon Ballistic Gun Light Assault Rifle Launcher Grenade Launcher Special Melee Weapon Datajack Build | -11 -10 -9 ------- Run | Yrd Mat Mat Slots Evolved 2 | . . 2 Power . | . . . Propulsion . | . . . Utility 2 | . . 2 Weapon . | . . . Parts Attached 32 | 7 5 20 Power 2 | 1 . 1 Engine 2 | 1 . 1 Core . | . . . Reactor . | . . . Propulsion 10 | 3 2 5 Treads . | . . . Leg 5 | 1 1 3 Wheel 2 | 2 . . Hover 1 | . . 1 Flight 2 | . 1 1 Utility 10 | . 2 8 Device 4 | . 1 3 Storage 3 | . 1 2 Processor 1 | . . 1 Hackware . | . . . Protection 2 | . . 2 Artifact . | . . . Weapon 10 | 3 1 6 Energy Gun 5 | 3 . 2 Energy Cannon 2 | . . 2 Ballistic Gun 1 | . . 1 Ballistic Cannon . | . . . Launcher 1 | . 1 . Special Weapon . | . . . Impact Weapon . | . . . Slashing Weapon . | . . . Piercing Weapon . | . . . Special Melee Weapon 1 | . . 1 Unidentified Prototypes . | . . . Parts Lost 13 | . . 13 Power 2 | . . 2 Propulsion 4 | . . 4 Utility 3 | . . 3 Weapon 4 | . . 4 Highest Loss Streak 8 | . . 8 To Critical Strikes . | . . . Average Backups 5 | 2 4 7 Power . | . . . Propulsion 2 | 1 3 2 Utility 1 | . . 2 Weapon 1 | . 1 2 Tool/Special . | . . . Unused Backups 16 | . 8 8 Power . | . . . Propulsion 10 | . 6 4 Utility 3 | . . 3 Weapon 2 | . 1 1 Tool/Special 1 | . 1 . Average Slot Usage (%) 86 | . 86 86 Engine 11 | . 14 8 Leg 18 | . 20 15 Flight 4 | . 5 2 Device 6 | . 4 8 Storage 11 | . 11 11 Processor 3 | . . 7 Protection 5 | . . 11 Energy Gun 11 | . 17 5 Energy Cannon 2 | . . 5 Ballistic Gun 1 | . . 3 Launcher 7 | . 10 3 Peak Build Rating 17 | 5 7 17 Average Rating 9 | 2 6 13 On Entrance 4 | . 5 7 Avg Prop Armor Cover (%) 5 | 9 5 2 Naked Turns . | . . . Heaviest Build 40 | 7 14 40 Greatest Support 32 | 10 10 32 Greatest Overweight (x) 6 | . 3 6 Average Overweight (x) . | . . 1 Largest Inventory Capacity 15 | 5 8 15 Average Capacity 9 | 5 7 12 Most Carried 9 | 5 8 9 Average Carried 5 | 2 4 7 Final Capacity 15 | 5 8 15 Final Carried 8 | 3 8 7 Class Distribution -------------------- 100% | Mutant Dominant Class ---------------- Mutant | -10/Materials Mutant | -9/Materials Resources | -11 -10 -9 ----------- Run | Yrd Mat Mat Matter Collected 672 | 265 30 377 Remotely . | . . . Salvage Created 723 | 30 231 462 Parts 56 | 2 22 32 Haulers Intercepted . | . . . Recyclers Shooed 2 | . 2 . Parts Field Recycled . | . . . Retrieved Matter . | . . . Parts Self-Destructed . | . . . Prevented . | . . . Parts Restored . | . . . Kills | -11 -10 -9 ------- Run | Yrd Mat Mat Combat Hostiles Destroyed 20 | 1 5 14 Guns 11 | 1 1 9 Cannons 2 | . . 2 AOE 7 | . 4 3 Classes Destroyed 7 | 1 4 2 Worker 1 | . 1 . Builder 2 | . 1 1 Recycler 2 | . 2 . Watcher 2 | . . 2 Swarmer 9 | . 3 6 Grunt 10 | 1 2 7 Sentry 1 | . . 1 Best Kill Streak 4 | 1 4 4 Combat Bots Only 3 | 1 3 3 Max Kills in Single Turn 3 | 1 3 2 Gunslinging . | . . . Exploded 2 | . 2 1 Melee . | . . . Uniques/NPCs Destroyed . | . . . Combat | -11 -10 -9 -------- Run | Yrd Mat Mat Hostile Shots Fired 244 | 4 11 229 Missed 62 | . 4 58 Hits 182 | 4 7 171 Projectile 182 | 4 7 171 Critical Strikes 2 | . . 2 Damage Taken 1526 | 34 133 1359 Core 482 | 8 69 405 Absorbed by Shields 100 | . . 100 Ignored by Resistances 493 | 11 39 443 Core Remaining (%) 82 | 96 69 . Volleys Fired 61 | 4 14 43 Largest 2 | 2 2 2 Hottest 113 | 90 90 113 Shots Fired 97 | 8 28 61 Gun 73 | 8 24 41 Cannon 15 | . . 15 Launcher 9 | . 4 5 Special . | . . . Kinetic 28 | . . 28 Thermal 29 | 4 10 15 Explosive 9 | . 4 5 Electromagnetic 31 | 4 14 13 Robot Hit Streak 16 | 7 9 16 Robot Miss Streak 3 | . 1 3 Penetration Max . | . . . Secondary Targets . | . . . Shots Hit Robots 71 | 7 18 46 Core Hits 49 | 3 14 32 Critical Kills . | . . . Critical Parts Destroyed . | . . . Critical Strikes . | . . . Melee Attacks 4 | . . 4 Impact . | . . . Slashing . | . . . Piercing . | . . . Sneak Attacks . | . . . Combat Hostiles . | . . . Follow-up Attacks . | . . . Damage Inflicted 1387 | 127 516 744 Guns 578 | 92 175 311 Cannons 183 | . . 183 Explosions 570 | 32 341 197 Melee . | . . . Ramming 56 | 3 . 53 Kinetic 175 | . . 175 Thermal 413 | 81 104 228 Explosive 464 | . 312 152 Electromagnetic 279 | 43 100 136 Impact . | . . . Slashing . | . . . Piercing . | . . . Highest Corruption 1 | . . 1 Average Corruption 1 | . . 1 Corruption Purged . | . . . Corruption Blocked . | . . . Overload Shots . | . . . Overflow Damage 4 | . 4 . Projectiles . | . . . Explosions 4 | . 4 . Melee . | . . . Knockbacks . | . . . Impact . | . . . Kinetic . | . . . Secondary . | . . . Self-Inflicted Damage 142 | 1 92 49 Shots 7 | . 4 3 Rammed 12 | 1 . 11 Targets Rammed 31 | 1 . 30 Kicked 19 | . . 19 Crushed . | . . . Highest Temperature 102 | 102 90 102 Average Temperature 37 | 59 30 37 Received Heat Transfer 436 | 24 . 412 Siege Activations . | . . . Martial Activations . | . . . Shielding Activations . | . . . Robots Disrupted . | . . . Combat Hostiles . | . . . Robots Corrupted . | . . . Combat Hostiles . | . . . Parts Fried . | . . . Impact Corruptions . | . . . Robots Melted . | . . . Combat Hostiles . | . . . Parts Melted . | . . . Heat Transferred 803 | 198 272 333 Parts Sabotaged . | . . . Parts Stolen . | . . . Parts Stripped . | . . . Power Chain Reactions 3 | 1 1 1 Alert | -11 -10 -9 ------- Run | Yrd Mat Mat Maximum Alert Level . | . . . Low Security (%) 100 | 100 100 100 Level 1 . | . . . Level 2 . | . . . Level 3 . | . . . Level 4 . | . . . Level 5 . | . . . High Security . | . . . Max Security . | . . . Peak Influence 102 | 20 102 102 Initial 11 | . 11 . Average 24 | 2 14 38 Influence Increases 608 | 20 187 401 Destroy 0b10 Robot/C 400 | 20 100 280 Destroy 0b10 Robot/NC 35 | . 20 15 Destroy Leader 74 | . 10 64 Successful Hack 9 | . 9 . Disable Machine 36 | . 27 9 Destroy Structure 54 | . 21 33 Influence Decreases 608 | . 207 401 Entered New Map 9 | . 9 . Time Decay 522 | . 198 324 Lost Part 77 | . . 77 Squads Dispatched 3 | . 1 2 Investigation 2 | . 1 1 Extermination . | . . . Reinforcement 1 | . . 1 Assault . | . . . Garrison . | . . . Intercept . | . . . Searches Triggered . | . . . Construction Impeded 1 | . . 1 Haulers Reinforced . | . . . Active Scanning Responses . | . . . Cargo Convoy Interrupts . | . . . Stealth | -11 -10 -9 --------- Run | Yrd Mat Mat Distress Signals 3 | . 1 2 Communications Jammed . | . . . Distress Signals . | . . . Times Spotted 31 | 1 10 20 Peak Tracking Total 5 | 1 5 4 Tactical Retreats . | . . . Traps | -11 -10 -9 ------- Run | Yrd Mat Mat Traps Triggered . | . . . Indirectly . | . . . Trap Hack Attempts . | . . . Triggered . | . . . Disarmed . | . . . Reprogrammed . | . . . Reused . | . . . Traps Extracted . | . . . Installed . | . . . Triggered . | . . . Machines | -11 -10 -9 ---------- Run | Yrd Mat Mat Machines Disabled 4 | . 3 1 Max in Single Turn 1 | . 1 1 Machines Repaired . | . . . Machines Dismantled . | . . . Machines Sabotaged . | . . . Overloaded Fab Kills . | . . . Hacking | -11 -10 -9 --------- Run | Yrd Mat Mat Machines Accessed 7 | . 6 1 Terminals 3 | . 3 . Fabricators . | . . . Repair Stations 1 | . 1 . Recycling Units 3 | . 2 1 Scanalyzers . | . . . Garrison Access . | . . . Total Hacks 22 | . 18 4 Successful 17 | . 15 2 Failed 5 | . 3 2 Catastrophic . | . . . Database Lockouts . | . . . Manual . | . . . Terminals 10 | . 10 . Fabricators . | . . . Repair Stations 2 | . 2 . Recycling Units 10 | . 6 4 Scanalyzers . | . . . Garrison Access . | . . . Terminal Hacks 8 | . 8 . Record 2 | . 2 . Robot Analysis 1 | . 1 . Emergency Access Points 1 | . 1 . Alert Level 1 | . 1 . Dispatch Records 2 | . 2 . Maintenance Status 1 | . 1 . Fabricator Hacks . | . . . Repair Station Hacks 1 | . 1 . Scan Component 1 | . 1 . Recycling Unit Hacks 8 | . 6 2 Recycle Component 3 | . 3 . Process 1 | . 1 . Report Inventory 2 | . 1 1 Retrieve Components 2 | . 1 1 Scanalyzer . | . . . Garrison Access Hacks . | . . . Unauthorized Hacks . | . . . Terminals . | . . . Fabricators . | . . . Repair Stations . | . . . Recycling Units . | . . . Scanalyzers . | . . . Garrison Access . | . . . Data Cores Recovered . | . . . Used . | . . . Hacking Detections 4 | . 3 1 Full Trace Events 3 | . 2 1 Feedback Events . | . . . Feedback Blocked . | . . . Robot Schematics Acquired . | . . . Robots Built . | . . . Authchips . | . . . Time . | . . . Total Robot Build Rating . | . . . Part Schematics Acquired . | . . . Parts Built . | . . . Authchips . | . . . Time . | . . . Total Part Build Rating . | . . . Part Studies Acquired . | . . . Parts Repaired . | . . . Time . | . . . Parts Recycled 3 | . 3 . Recycled Matter 6 | . 6 . Retrieved Matter . | . . . Retrieved Components 3 | . . 3 Parts Scanalyzed . | . . . Part Schematics Acquired . | . . . Parts Damaged . | . . . Bothacking | -11 -10 -9 ------------ Run | Yrd Mat Mat Used RIF Installer . | . . . Robots Hacked 1 | . . 1 Non-combat . | . . . Combat 1 | . . 1 Robot Hacks Applied 1 | . . 1 parse_system 1 | . . 1 Relay Couplers Released . | . . . Fabnet Peak Effective % . | . . . Robots Rewired . | . . . Allies Hacked . | . . . Hacks Repelled . | . . . Allies | -11 -10 -9 -------- Run | Yrd Mat Mat Total Allies . | . . . Largest Group . | . . . Highest-Rated Group . | . . . Highest-Rated Ally . | . . . Total Orders . | . . . Ally Attacks . | . . . Total Damage . | . . . Kills . | . . . Allies Corrupted . | . . . Allies Melted . | . . . Intel | -11 -10 -9 ------- Run | Yrd Mat Mat Active Infowar (turns) 291 | . 291 . Structural 291 | . 291 . Robot Analysis Total 1 | . 1 . Derelict Logs Recovered . | . . . Drone Launches . | . . . Drone Recoveries . | . . . Exploration | -11 -10 -9 ------------- Run | Yrd Mat Mat Turns Passed 1781 | 95 889 797 Spaces Moved 874 | 98 471 305 Core 49 | 40 . 9 Treads . | . . . Legs 723 | . 430 293 Wheels 98 | 58 40 . Hover . | . . . Flight 4 | . 1 3 Fastest Speed 50 | 50 80 120 Average Speed 165 | 67 171 188 Slowest Speed 350 | 80 290 350 Overloaded Moves . | . . . Propulsion Burnouts . | . . . Robots Hopped . | . . . Potential Cave-ins . | . . . Cave-ins Triggered . | . . . Exploration Rate (%) 25 | 6 46 23 Regions Visited 2 Branch Regions . Pre-discovered Areas . | . . . Known Exits Taken . | . . . Unknown Exits Taken 2 | 1 1 . Scrap Searched . | . . . Spaces Dug . | . . . Terrain Destroyed 47 | . 17 30 Melee . | . . . Projectile . | . . . AOE 47 | . 17 30 Terrain Rammed . | . . . Walls Destroyed . | . . . Machines Disabled . | . . . Actions | -11 -10 -9 --------- Run | Yrd Mat Mat Total 1104 | 119 534 451 Wait 12 | . . 12 Move 872 | 97 470 305 Hop . | . . . Pick Up 50 | 8 23 19 Fast Attach 3 | . . 3 Attach 28 | 7 8 13 Detach 8 | 2 4 2 Swap 7 | . 1 6 Drop 28 | . 14 14 Fire 61 | 4 14 43 Melee 4 | . . 4 Ram 12 | 1 . 11 Kick 19 | . . 19 Crush . | . . . Escape Stasis . | . . . Rewire . | . . . Trap . | . . . Miscellaneous . | . . . Route ------- -11/Scrapyard -10/Materials -9/Materials History --------- Turn | Location | Event 2 | -11/Scrapyard | Met Revision 17 72 | -11/Scrapyard | Discovered new exit (range 8) 96 | -11/Scrapyard | Entered Materials 333 | -10/Materials | Build established: Mutant 831 | -10/Materials | Discovered new exit (range 16) 985 | -10/Materials | Entered another Materials area 985 | -9/Materials | Evolved 2 slots: Utility x2 1441 | -9/Materials | Lost 3 parts (1p1n1w) 1722 | -9/Materials | Core integrity fell below 50% 1762 | -9/Materials | Core integrity fell below 20% 1782 | -9/Materials | Destroyed by Y-45 Defender with Heavy Assault Rifle Last Messages --------------- 01749_ Flight Unit destroyed. 01751_ Slammed into Y-45 Defender. 01752_ R-06 Scavenger collects Corrupted Imp. Heat Sink. 01753_ K-01 Serf collects debris. 01753_ Slammed into Y-45 Defender. 01753_ Destabilizing: Core damaged (-12). 01754_ Slammed into Y-45 Defender. 01757_ K-01 Serf cleans the TF Node. 01757_ Slammed into Y-45 Defender. 01757_ Destabilizing: System corrupted (+1). 01759_ Slammed into Y-45 Defender. 01760_ K-01 Serf collects debris. 01762_ Slammed into Y-45 Defender. 01764_ K-01 Serf collects debris. 01772_ Critical hit (Burn: +37). 01772_ Weight Redist. System destroyed. 01775_ K-01 Serf collects debris. 01779_ Slammed into Y-45 Defender. 01782_ K-01 Serf collects debris. Map ----- +----------------------------------------------------+ | | | | | | | | | | | | | | | | | | | | | ????????????????????????????????????????########## | | ????????????????????????????????????????# | | ????????????????????????????????????????# | | ????????????????????########????????????# """ "" | | ????????????????????# #????????????# """"""" | | ????????????????????# #????????????# """"" | | ????????????? ?? ???# """ #????????????# | | ??????????? ??# """ #????????????###+###+## | | ?????????# ?# ""! #???????#####??# | | ?????????# ?# [ = #?############## | | ?????????# ?####k###?# + = | | ?????????# ??# = #?# %####### | | ?????????# ??# ### ##?#### | | ?????????# ?# " + #### | | ?????????# ?# ### # | | ?????????# ?# Y@ #?# # | | ?????????# ?### ###?# # !! | | ?????????#% ???# #???# # ! | | ?????????# #### ##### #* | | ?????????# ##+###+####%= | | ?????????# ""T"" | | ?????????# """"" | | ?????????#####== ######## | | ?????????????#=! ######??????? | | ?????????????# """ """ """ #???????????? | | ?????????????# """ """ """ ???????????? | | ?????????????# "T" """ """ """ ???????????? | | ?????????????# """ ??????????? | | ?????????????# ??????????? | | ?????????????# ##??????????? | | ?????????????# #####?#+###???????????? | | ??????????????? #?????????????????????? | | ??????????????? ? #?????????????????????? | | ??????????????? ? #?????????????????????? | | ???????????????#######?# #?????????????????????? | | ???????????????????????? ^ #?????????????????????? | | ???????????????????????? ??????????????????????? | | ?????????????????????????????????????????????????? | | ?????????????????????????????????????????????????? | | ?????????????????????????????????????????????????? | +----------------------------------------------------+ Best States ------------- Heat Dissipation 28 Coolant Potential 50 Energy Generation 10 Energy Capacity 125 Matter Stores 300 Matter Capacity 450 Sight Range 16 Terrain Scan Density 10 Additional Mass Support 6 Armor Coverage 300 Resistance: KI 20 Resistance: TH 20 Resistance: EX 20 Resistance: EM 20 Resistance: I 20 Resistance: S 20 Resistance: P 20 Evasion (%) 55 Targeting Accuracy 6 Offensive Hacking 10 Item Schematics ----------------- None Robot Schematics ------------------ None Fabricated ------------ Nothing Repaired ---------- Nothing Studied --------- None Alien Tech Used ----------------- None Achievements -------------- None Challenges ------------ None Game ------ Seed SwordCloakingCapacitor Manual? 0 Play Time 00:59:47 Cumulative 6.8 hours Start 2026.07.31 @ 00:12:04 End 2026.07.31 @ 01:40:02 Sessions 1 Manual Loads 0 Difficulty Adventurer Special Mode None Game No. 12 Rogue 0 Adventurer 12 Explorer 0 Win Type - Total 0 Types 0/0/0/0/0/0/0/0/0/0 Lore% 5 Gallery% 12 Achievement% 7 Wizard Run 0 Options --------- Layout 1 ASCII 0 Keyboard 0 Movement Mouse Keybinds 0 Fullscreen 0 Font 28/SmallcapsLarge Map View 28x23 Zoom Use 99% Tactical HUD 1 Map Filters NONE Filters NONE Steam 1 RUN: d9f636af-6d9b-4613-b57f-8a14a699ee97